fUST/lending_fUST_20251108
["ID","MTS","AMOUNT","RATE_DAILY","PERIOD"]
[393377515,1762548643683,-151.0,0.000248,7]
[393377516,1762548643696,-5432.08,0.00024856,10]
[393377517,1762548643707,-1664.61700403,0.00024856,2]
[393377518,1762548643716,-6127.76809531,0.00024866,2]
[393377522,1762548646855,-44196.67807047,0.00024866,2]
[393377523,1762548646866,-2709.58128165,0.00024866,2]
[393377524,1762548663544,500.0,0.00017173,2]
[393377525,1762548663721,500.0,0.00017173,2]
[393377526,1762548663755,500.0,0.00017173,2]
[393377527,1762548749105,1000.0,0.00037082,30]
[393377528,1762548749585,1000.0,0.00037082,30]
[393377529,1762548750003,1000.0,0.00037082,30]
[393377530,1762548750467,1000.0,0.00037082,30]
[393377531,1762548751136,1712.851161,0.00037082,30]
[393377533,1762548782748,15856.710269,0.00037082,120]
[393377534,1762548880619,285.95221051,0.0001729,2]
[393377535,1762548905801,174.411806,0.00016809,2]
[393377536,1762548933603,1000.0,0.00016847,2]
[393377537,1762549044794,4538.374417,0.000173,2]
[393377543,1762549352684,150.0,0.00037084,30]
[393377544,1762549552599,838.3455467,0.00016809,2]
[393377551,1762549680108,267.61,0.00015984,2]
[393377600,1762549832258,-160.0,0.0001739,2]
[393377601,1762549832268,-166.30592831,0.0001739,2]
[393377602,1762549832278,-843.0,0.0001739,2]
[393377603,1762549832287,-300.0,0.00017838,2]
[393377604,1762549832296,-31259.93265511,0.00017839,2]
[393377605,1762549832306,-300.0,0.00017839,2]
[393377606,1762549832316,-300.0,0.00017839,2]
[393377607,1762549832325,-300.0,0.00017839,2]
[393377608,1762549832334,-300.0,0.00017839,2]
[393377609,1762549832344,-300.0,0.00017839,2]
[393377610,1762549832353,-300.0,0.00017839,2]
[393377611,1762549832362,-300.0,0.00017839,2]
[393377612,1762549832372,-300.0,0.00017839,2]
[393377613,1762549832382,-300.0,0.00017839,2]
[393377614,1762549832391,-300.0,0.00017839,2]
[393377615,1762549832403,-300.0,0.00017839,2]
[393377617,1762549832412,-300.0,0.00017839,2]
[393377618,1762549832422,-300.0,0.00017839,2]
[393377619,1762549832431,-300.0,0.00017839,2]
[393377620,1762549832442,-300.0,0.00017839,2]
[393377621,1762549832452,-600.0,0.00017839,2]
[393377622,1762549832461,-483.51881006,0.00018667,2]
[393377623,1762549832470,-619.15661723,0.00018689,2]
[393377624,1762549832479,-232.32869624,0.0001887,2]
[393377625,1762549832489,-196.24099541,0.0001939,2]
[393377626,1762549832498,-420.0,0.00019466,2]
[393377627,1762549832507,-720.0,0.00019623,2]
[393377628,1762549832517,-160.0,0.00019983,2]
[393377629,1762549832526,-160.0,0.00019983,2]
[393377630,1762549832536,-160.0,0.00019983,2]
[393377631,1762549832545,-1386.5775109,0.00020693,2]
[393377632,1762549832555,-587.0,0.00021243,2]
[393377633,1762549832564,-226.1760625,0.0002139,2]
[393377634,1762549832573,-160.0,0.000215,2]
[393377635,1762549832583,-864.0,0.00021585,20]
[393377636,1762549832592,-150.0,0.00021641,2]
[393377637,1762549832603,-150.0,0.00021641,2]
[393377638,1762549832612,-150.0,0.00021641,2]
[393377639,1762549832622,-150.0,0.00021641,2]
[393377640,1762549832631,-150.0,0.00021641,2]
[393377641,1762549832641,-150.0,0.00021641,2]
[393377642,1762549832650,-542.944,0.00021641,2]
[393377643,1762549832659,-628.0,0.00021641,2]
[393377644,1762549832669,-412.0,0.00021641,2]
[393377645,1762549832678,-260.0,0.00022048,2]
[393377646,1762549832687,-300.43,0.00022344,2]
[393377647,1762549832697,-360.0,0.00022596,2]
[393377648,1762549832706,-168.0,0.00022766,2]
[393377649,1762549832716,-360.0,0.00022871,2]
[393377650,1762549832726,-264.43,0.00022871,2]
[393377651,1762549832736,-194.928507,0.00022898,2]
[393377652,1762549832745,-170.794971,0.00022898,2]
[393377653,1762549832754,-962.37040683,0.00023013,2]
[393377654,1762549832763,-460.0,0.00023144,2]
[393377655,1762549832772,-823.0,0.00023183,2]
[393377656,1762549832781,-500.0,0.00023314,2]
[393377657,1762549832790,-168.0,0.00023343,2]
[393377658,1762549832800,-168.0,0.0002337,2]
[393377659,1762549832809,-168.0,0.0002338,2]
[393377660,1762549832818,-256.1111296,0.0002339,2]
[393377661,1762549832828,-168.0,0.00023581,2]
[393377662,1762549832838,-168.0,0.00023593,2]
[393377663,1762549832847,-560.0,0.00023692,2]
[393377664,1762549832857,-1000.0,0.00023743,20]
[393377665,1762549832865,-299.2348048,0.00023808,2]
[393377666,1762549832875,-168.0,0.00023865,2]
[393377667,1762549832883,-537.13079093,0.000239,2]
[393377668,1762549832892,-4954.62,0.00023951,10]
[393377669,1762549832903,-8569.13,0.00023951,10]
[393377670,1762549832912,-7140.95,0.00023951,10]
[393377671,1762549832921,-5950.79,0.00023951,10]
[393377672,1762549832929,-500.0,0.00023961,2]
[393377673,1762549832938,-500.0,0.00023961,2]
[393377674,1762549832947,-500.0,0.00023961,2]
[393377675,1762549832956,-500.0,0.00023961,2]
[393377676,1762549832965,-500.0,0.00023961,2]
[393377677,1762549832974,-500.0,0.00023961,2]
[393377678,1762549832982,-500.0,0.00023961,2]
[393377679,1762549832991,-500.0,0.00023961,2]
[393377680,1762549833000,-500.0,0.00023961,2]
[393377681,1762549833009,-500.0,0.00023961,2]
[393377682,1762549833018,-500.0,0.00023961,2]
[393377683,1762549833027,-500.0,0.00023961,2]
[393377684,1762549833036,-500.0,0.00023961,2]
[393377685,1762549833045,-500.0,0.00023961,2]
[393377686,1762549833055,-500.0,0.00023961,2]
[393377687,1762549833064,-500.0,0.00023961,2]
[393377688,1762549833074,-500.0,0.00023961,2]
[393377689,1762549833083,-500.0,0.00023961,2]
[393377690,1762549833093,-219.11865533,0.00023961,2]
[393377691,1762549833103,-500.0,0.00023961,2]
[393377692,1762549833113,-500.0,0.00023961,2]
[393377693,1762549833122,-500.0,0.00023961,2]
[393377694,1762549833131,-500.0,0.00023961,2]
[393377695,1762549833141,-500.0,0.00023961,2]
[393377696,1762549833150,-500.0,0.00023961,2]
[393377697,1762549833160,-500.0,0.00023961,2]
[393377698,1762549833169,-500.0,0.00023961,2]
[393377699,1762549833178,-500.0,0.00023961,2]
[393377700,1762549833187,-500.0,0.00023961,2]
[393377701,1762549833196,-500.0,0.00023961,2]
[393377702,1762549833205,-500.0,0.00023961,2]
[393377703,1762549833215,-500.0,0.00023961,2]
[393377704,1762549833224,-500.0,0.00023961,2]
[393377705,1762549833238,-500.0,0.00023961,2]
[393377706,1762549833247,-500.0,0.00023961,2]
[393377707,1762549833256,-500.0,0.00023961,2]
[393377708,1762549833265,-500.0,0.00023961,2]
[393377709,1762549833274,-500.0,0.00023961,2]
[393377710,1762549833284,-500.0,0.00023961,2]
[393377711,1762549833294,-500.0,0.00023961,2]
[393377712,1762549833303,-500.0,0.00023961,2]
[393377713,1762549833312,-500.0,0.00023961,2]
[393377714,1762549833323,-500.0,0.00023961,2]
[393377715,1762549833430,-500.0,0.00023961,2]
[393377716,1762549833440,-500.0,0.00023961,2]
[393377717,1762549833450,-500.0,0.00023961,2]
[393377718,1762549833459,-500.0,0.00023961,2]
[393377719,1762549833468,-500.0,0.00023961,2]
[393377720,1762549833478,-500.0,0.00023961,2]
[393377721,1762549833487,-500.0,0.00023961,2]
[393377722,1762549833496,-500.0,0.00023961,2]
[393377723,1762549833506,-500.0,0.00023961,2]
[393377724,1762549833516,-500.0,0.00023961,2]
[393377725,1762549833526,-500.0,0.00023961,2]
[393377726,1762549833535,-500.0,0.00023961,2]
[393377727,1762549833544,-500.0,0.00023961,2]
[393377728,1762549833554,-500.0,0.00023961,2]
[393377729,1762549833563,-500.0,0.00023961,2]
[393377730,1762549833573,-500.0,0.00023961,2]
[393377731,1762549833582,-500.0,0.00023961,2]
[393377732,1762549833591,-500.0,0.00023961,2]
[393377733,1762549833601,-500.0,0.00023961,2]
[393377734,1762549833610,-418.06063515,0.00023961,2]
[393377735,1762549833619,-184.95661669,0.00023961,2]
[393377736,1762549833629,-500.0,0.00023961,2]
[393377737,1762549833639,-500.0,0.00023961,2]
[393377738,1762549833650,-500.0,0.00023961,2]
[393377739,1762549833659,-500.0,0.00023961,2]
[393377740,1762549833669,-500.0,0.00023961,2]
[393377741,1762549833678,-500.0,0.00023961,2]
[393377742,1762549833688,-500.0,0.00023961,2]
[393377743,1762549833697,-500.0,0.00023961,2]
[393377744,1762549833707,-500.0,0.00023961,2]
[393377745,1762549833717,-500.0,0.00023961,2]
[393377746,1762549833727,-500.0,0.00023961,2]
[393377747,1762549833736,-500.0,0.00023961,2]
[393377748,1762549833745,-500.0,0.00023961,2]
[393377749,1762549833754,-500.0,0.00023961,2]
[393377750,1762549833763,-500.0,0.00023961,2]
[393377751,1762549833773,-500.0,0.00023961,2]
[393377752,1762549833782,-500.0,0.00023961,2]
[393377753,1762549833791,-152.35460557,0.00023961,2]
[393377754,1762549833801,-500.0,0.00023961,2]
[393377755,1762549833810,-500.0,0.00023961,2]
[393377756,1762549833819,-500.0,0.00023961,2]
[393377757,1762549833830,-500.0,0.00023961,2]
[393377758,1762549833839,-500.0,0.00023961,2]
[393377759,1762549833848,-500.0,0.00023961,2]
[393377760,1762549833858,-494.76135564,0.00023964,2]
[393377761,1762549833866,-71583.9647,0.0002399,2]
[393377762,1762549833875,-235.72,0.00024,7]
[393377763,1762549833885,-500.0,0.00024,2]
[393377764,1762549833894,-168.0,0.00024008,2]
[393377765,1762549833904,-537.13079091,0.000241,2]
[393377766,1762549833913,-168.0,0.00024116,2]
[393377767,1762549833922,-168.0,0.00024225,2]
[393377768,1762549833931,-660.0,0.0002424,2]
[393377769,1762549833940,-533.48315617,0.00024281,2]
[393377770,1762549833950,-537.13079091,0.000243,2]
[393377771,1762549833959,-1491.8489953,0.00024375,2]
[393377772,1762549833968,-32188.2937502,0.00024375,2]
[393377773,1762549833978,-168.0,0.00024431,2]
[393377774,1762549833989,-168.0,0.00024439,2]
[393377775,1762549833999,-537.13079091,0.000245,2]
[393377776,1762549834008,-163.960249,0.0002463,2]
[393377777,1762549834017,-163.6505875,0.0002463,2]
[393377778,1762549834026,-150.0,0.00024641,2]
[393377779,1762549834035,-150.0,0.00024641,2]
[393377780,1762549834044,-150.0,0.00024641,2]
[393377781,1762549834053,-150.0,0.00024641,2]
[393377782,1762549834062,-150.0,0.00024641,2]
[393377783,1762549834071,-164.843,0.00024641,2]
[393377784,1762549834081,-412.0,0.00024641,2]
[393377785,1762549834090,-151.0,0.000247,6]
[393377786,1762549834100,-537.13079091,0.000247,2]
[393377787,1762549834109,-533.48315617,0.000247,2]
[393377788,1762549834118,-681.32716292,0.000247,2]
[393377789,1762549834127,-194.928507,0.00024724,2]
[393377790,1762549834136,-170.794971,0.00024724,2]
[393377791,1762549834145,-502.16921861,0.00024773,2]
[393377792,1762549834155,-500.0,0.00024773,2]
[393377793,1762549834164,-380.0,0.00024788,2]
[393377794,1762549834174,-151.0,0.000248,5]
[393377795,1762549834183,-40351.6514584,0.000248,2]
[393377796,1762549834196,-79179.43494516,0.000248,2]
[393377797,1762549834207,-1810.54911172,0.000248,2]
[393377829,1762549838159,-399.72441935,0.00019983,2]
[393377831,1762549838168,-290.35243952,0.00023989,2]
[393377833,1762549838178,-4958.99,0.0002479,10]
[393377835,1762549838187,-66435.15016523,0.000248,2]
[393377837,1762549838198,-307.8364998,0.000248,2]
[393377904,1762549840420,-60302.03906251,0.000248,2]
[393377906,1762549840432,-90912.53848584,0.000248,2]
[393377912,1762549840477,-10507.0,0.000248,2]
[393377914,1762549840487,-546.75,0.000248,2]
[393377921,1762549840535,-7629.59578289,0.000248,2]
[393377923,1762549840546,-15441.73297424,0.000248,2]
[393378123,1762549846582,-3494.32624969,0.000248,2]
[393378124,1762549846595,-1884.8029153,0.000248,2]
[393378125,1762549846798,-306196.59234922,0.000248,2]
[393378126,1762549846808,-24969.2550606,0.000248,2]
[393378127,1762549846819,-151.0,0.000248,7]
[393378128,1762549846829,-151.0,0.000248,7]
[393378129,1762549846838,-150.0,0.000248,2]
[393378130,1762549846847,-2157.35,0.000249,7]
[393378131,1762549846856,-150.0,0.000249,2]
[393378132,1762549846868,-150.0,0.000249,2]
[393378133,1762549846877,-414147.126963,0.000249,2]
[393378134,1762549846886,-241.45102937,0.000249,7]
[393378135,1762549846896,-1000.0,0.00025,14]
[393378136,1762549846905,-51945.67329385,0.00025,5]
[393378137,1762549846916,-152.0,0.00025,7]
[393378138,1762549846925,-206.466739,0.00025,2]
[393378139,1762549846935,-1152.0,0.00025299,2]
[393378140,1762549846945,-299.8681509,0.00025342,2]
[393378141,1762549846954,-299.8681509,0.00025342,2]
[393378142,1762549846963,-299.8681509,0.00025342,2]
[393378143,1762549846973,-437.38582209,0.000257,2]
[393378144,1762549846983,-962.37040683,0.00025761,3]
[393378145,1762549846992,-152.0,0.0002589,7]
[393378146,1762549847002,-161.0,0.00026,5]
[393378147,1762549847012,-1000.0,0.00026118,30]
[393378148,1762549847021,-244.0,0.00026118,30]
[393378149,1762549847031,-163.960249,0.00026164,2]
[393378150,1762549847040,-163.960249,0.00026164,2]
[393378151,1762549847049,-2157.35,0.000263,7]
[393378152,1762549847059,-5000.0,0.00026419,2]
[393378153,1762549847068,-200.0,0.0002654,14]
[393378154,1762549847078,-194.928507,0.0002655,2]
[393378155,1762549847087,-170.794971,0.0002655,2]
[393378156,1762549847096,-481.79515248,0.00026631,2]
[393378157,1762549847106,-524.68311,0.00026676,2]
[393378158,1762549847116,-481.79515248,0.00026791,9]
[393378159,1762549847125,-177.0,0.000268,2]
[393378160,1762549847134,-299.868151,0.00026849,2]
[393378161,1762549847144,-1491.8489953,0.00026881,2]
[393378162,1762549847153,-505.036,0.00026936,2]
[393378163,1762549847162,-481.79515248,0.00026951,17]
[393378164,1762549847173,-481.79515248,0.00027111,25]
[393378165,1762549847182,-481.79515248,0.00027272,32]
[393378166,1762549847191,-426.616849,0.00027397,31]
[393378167,1762549847201,-426.616849,0.00027397,31]
[393378168,1762549847210,-426.616849,0.00027397,31]
[393378169,1762549847220,-426.616849,0.00027397,31]
[393378170,1762549847228,-426.616849,0.00027397,31]
[393378171,1762549847238,-426.616849,0.00027397,31]
[393378172,1762549847251,-426.616849,0.00027397,31]
[393378173,1762549847260,-426.616849,0.00027397,31]
[393378174,1762549847270,-426.616849,0.00027397,31]
[393378175,1762549847279,-426.616849,0.00027397,31]
[393378176,1762549847290,-426.616849,0.00027397,31]
[393378177,1762549847299,-426.616849,0.00027397,31]
[393378178,1762549847309,-426.616849,0.00027397,31]
[393378179,1762549847320,-426.616849,0.00027397,31]
[393378180,1762549847330,-426.616849,0.00027397,31]
[393378181,1762549847339,-426.616849,0.00027397,31]
[393378182,1762549847349,-1899.79,0.000274,2]
[393378183,1762549847358,-481.79515248,0.00027432,40]
[393378184,1762549847368,-481.79515248,0.00027592,48]
[393378185,1762549847377,-1613.0,0.00027609,2]
[393378186,1762549847386,-150.0,0.00027641,2]
[393378187,1762549847396,-150.0,0.00027641,2]
[393378188,1762549847405,-150.0,0.00027641,2]
[393378189,1762549847414,-150.0,0.00027641,2]
[393378190,1762549847424,-150.0,0.00027641,2]
[393378191,1762549847549,-163.960249,0.00027671,30]
[393378192,1762549847560,-2157.35,0.000277,7]
[393378193,1762549847569,-234.375,0.00027706,2]
[393378194,1762549847578,-481.79515248,0.00027752,56]
[393378195,1762549847588,-7182.1791394,0.00027805,2]
[393378196,1762549847598,-194.928507,0.00027834,7]
[393378197,1762549847608,-170.794971,0.00027834,7]
[393378198,1762549847617,-481.79515248,0.00027912,63]
[393378199,1762549847626,-681.32716292,0.00027917,2]
[393378200,1762549847636,-234.375,0.0002804,17]
[393378201,1762549847645,-481.79515248,0.00028073,71]
[393378202,1762549847655,-481.79515248,0.00028233,79]
[393378203,1762549847664,-234.375,0.00028373,32]
[393378204,1762549847674,-194.928507,0.00028376,2]
[393378205,1762549847684,-170.794971,0.00028376,2]
[393378206,1762549847693,-481.79515248,0.00028393,86]
[393378207,1762549847703,-194.928507,0.0002842,7]
[393378208,1762549847713,-170.794971,0.0002842,7]
[393378209,1762549847722,-962.37040683,0.00028509,4]
[393378210,1762549847731,-481.79515248,0.00028553,94]
[393378211,1762549847741,-1602.5607815,0.0002857,2]
[393378212,1762549847750,-1899.79,0.000286,2]
[393378213,1762549847759,-234.375,0.00028706,48]
[393378214,1762549847768,-481.79515248,0.00028713,102]
[393378215,1762549847778,-1000.0,0.0002873,30]
[393378216,1762549847787,-492.0,0.0002873,30]
[393378217,1762549847796,-204.0,0.000288,2]
[393378218,1762549847806,-306.79515248,0.00028873,110]
[393378219,1762549847815,-2157.35,0.00029,7]
[393378220,1762549847825,-194.928507,0.00029005,7]
[393378221,1762549847835,-170.794971,0.00029005,7]
[393378222,1762549847845,-54792.64085674,0.0002901,3]
[393378223,1762549847855,-426.616849,0.0002901,31]
[393378224,1762549847865,-426.616849,0.0002901,31]
[393378225,1762549847874,-426.616849,0.0002901,31]
[393378226,1762549847883,-426.61684,0.0002901,31]
[393378227,1762549847892,-2000.0,0.00029034,7]
[393378228,1762549847902,-234.375,0.0002904,63]
[393378229,1762549847911,-188.37,0.000291,14]
[393378230,1762549847921,-303.18491855,0.00029288,14]
[393378231,1762549847931,-234.375,0.00029373,79]
[393378232,1762549847940,-1491.8489953,0.00029386,2]
[393378233,1762549847949,-10000.0,0.000294,2]
[393378234,1762549847959,-831.0,0.000294,2]
[393378235,1762549847968,-194.928507,0.000294,20]
[393378236,1762549847977,-170.794971,0.000294,20]
[393378237,1762549847987,-11461.14522173,0.0002947,20]
[393378238,1762549847996,-10000.0,0.000295,2]
[393378239,1762549848006,-194.928507,0.0002958,20]
[393378240,1762549848016,-170.794971,0.0002958,20]
[393378241,1762549848025,-194.928507,0.00029591,7]
[393378242,1762549848034,-170.794971,0.00029591,7]
[393378243,1762549848043,-1899.79,0.000296,2]
[393378244,1762549848052,-5000.0,0.00029669,2]
[393378245,1762549848062,-180.28281362,0.00029683,4]
[393378246,1762549848071,-234.375,0.00029706,94]
[393378247,1762549848080,-194.928507,0.00029759,20]
[393378248,1762549848090,-170.794971,0.00029759,20]
[393378249,1762549848098,-11488.42739793,0.000299,2]
[393378250,1762549848108,-194.928507,0.00029939,20]
[393378251,1762549848117,-170.794971,0.00029939,20]
[393378252,1762549848127,-2000.0,0.00029948,7]
[393378253,1762549848137,-10000.0,0.0003,2]
[393378254,1762549848147,-92617.84173435,0.0003,20]
[393378255,1762549848209,-17572.23176862,0.0003,20]
[393378256,1762550109720,151.0,0.00037042,30]
[393378257,1762550110388,156.587,0.00037042,120]
[393378258,1762550111212,162.380719,0.00037042,50]
[393378259,1762550111852,168.3888056,0.00037042,60]
[393378260,1762550112515,168.3888056,0.00037042,60]
[393378265,1762550507836,521.733868,0.00013699,2]
[393378271,1762550842833,249153.03079743,0.00037047,20]
[393378272,1762550901961,155.0,0.00018,30]
[393378273,1762550903746,1528.35297902,0.0002,30]
[393378274,1762550904595,9478.276132,0.00017,2]
[393378275,1762550904619,10000.01,0.00017,2]
[393378276,1762550904640,10000.01,0.00017,2]
[393378277,1762550904661,7403.89085985,0.00017,2]
[393378278,1762550908805,25326.33445818,0.00037047,120]
[393378288,1762550910781,1697.88702098,0.0002,30]
[393378289,1762550910803,2036.04659986,0.0002,30]
[393378290,1762550912904,271.51770832,0.0001515,20]
[393378291,1762550913266,214.17447568,0.00016,2]
[393378292,1762550917087,400.0,0.0002,30]
[393378527,1762551040560,-4175.96196114,0.00017819,2]
[393378529,1762551040571,-863.0,0.00017819,2]
[393378531,1762551040580,-1092.94141397,0.000179,2]
[393378533,1762551040591,-807.32574413,0.000179,2]
[393378535,1762551040600,-300.0,0.00017999,2]
[393378537,1762551040613,-404.39781575,0.00017999,2]
[393378539,1762551040623,-500.0,0.00017999,2]
[393378541,1762551040632,-500.0,0.00017999,2]
[393378543,1762551040641,-500.0,0.00017999,2]
[393378545,1762551040652,-500.0,0.00017999,2]
[393378547,1762551040661,-500.0,0.00017999,2]
[393378549,1762551040671,-500.0,0.00017999,2]
[393378552,1762551040680,-187.21740185,0.00017999,2]
[393378553,1762551040689,-500.0,0.00017999,2]
[393378555,1762551040699,-500.0,0.00017999,2]
[393378557,1762551040708,-500.0,0.00017999,2]
[393378559,1762551040717,-461.37273395,0.00017999,2]
[393378561,1762551040727,-470.55011596,0.00017999,2]
[393378563,1762551040736,-178.22355901,0.00017999,2]
[393378566,1762551040747,-42307.07476015,0.00018,2]
[393378647,1762551043594,-19490.28608235,0.00018,2]
[393378648,1762551043605,-150.0,0.00018,2]
[393378649,1762551043618,-8015.6936374,0.00019638,2]
[393378650,1762551043629,-7643.81399335,0.00019638,2]
[393378683,1762551046671,-820.62939,0.00019638,2]
[393378684,1762551046866,-2068.6,0.00019638,2]
[393378685,1762551046901,-16356.24323264,0.00019638,2]
[393378686,1762551046910,-420.0,0.00019639,2]
[393378687,1762551046920,-159.18924599,0.00020087,2]
[393378688,1762551046930,-521.733868,0.00020187,2]
[393378689,1762551046939,-587.0,0.00021428,2]
[393378690,1762551046950,-3283.4747531,0.00021808,2]
[393378691,1762551046960,-187.84331027,0.00022087,2]
[393378692,1762551046969,-1977.41819,0.0002213,2]
[393378693,1762551047038,-330.8457417,0.0002213,2]
[393378694,1762551047048,-412.0,0.00022394,2]
[393378695,1762551047058,-540.30893081,0.0002262,2]
[393378696,1762551166761,228.82205701,0.00037047,60]
[393378700,1762551189388,483.45323809,0.00037047,60]
[393378701,1762551274108,381.6181109,0.00037042,60]
[393378778,1762552239325,-550.9,0.00018989,2]
[393378790,1762552246839,-371.1,0.00018989,2]
[393378792,1762552246848,-162.86859487,0.00018989,2]
[393378793,1762552246862,-330.12991417,0.00019,2]
[393378794,1762552246872,-192.18494195,0.00020989,2]
[393378795,1762552246882,-300.0,0.00021839,2]
[393378796,1762552246891,-10025.21654901,0.0002184,2]
[393378798,1762552248900,503.92621279,0.00037042,60]
[393378799,1762552253660,459.09614763,0.00037042,60]
[393378800,1762552258856,505.71362887,0.00037042,60]
[393378801,1762552268993,519.95623272,0.00037042,60]
[393378802,1762552289274,520.80138556,0.00037042,60]
[393378803,1762552509879,278.79018014,0.00037042,120]
[393378805,1762553100966,500.0,0.00037066,60]
[393378806,1762553117107,511.80368153,0.00037066,60]
[393378807,1762553129822,505.03848039,0.00037066,60]
[393378808,1762553134114,505.54821293,0.00037066,60]
[393378809,1762553135982,505.1613542,0.00037066,60]
[393378810,1762553138145,505.33805442,0.00037066,60]
[393378811,1762553149860,506.30137458,0.00037066,60]
[393378812,1762553151623,513.29938647,0.00037066,60]
[393378813,1762553159025,1313.06736481,0.00037066,62]
[393378814,1762553161710,575.54539852,0.00037066,60]
[393378815,1762553263144,400.0,0.00037066,62]
[393378816,1762553263801,400.0,0.00037066,62]
[393378817,1762553336597,533.950722,0.00013699,2]
[393378875,1762553431993,-985.0,0.00020187,2]
[393378877,1762553432002,-533.950722,0.00020187,2]
[393378879,1762553432012,-912.832527,0.0002045,2]
[393378881,1762553432021,-176.16752413,0.00020652,2]
[393378884,1762553432030,-4913.6860349,0.00021116,2]
[393378886,1762553432039,-300.0,0.0002123,2]
[393378890,1762553432048,-4400.67637618,0.00021231,2]
[393378893,1762553432063,-12149.77714712,0.00021231,2]
[393378895,1762553432073,-2021.899296,0.00021275,2]
[393378897,1762553432082,-733.6295663,0.00021681,2]
[393378899,1762553432091,-1682.08540737,0.0002178,2]
[393378901,1762553432101,-14272.68650109,0.0002184,2]
[393378903,1762553432110,-500.0,0.00021873,2]
[393378905,1762553432119,-410.21768499,0.00021873,2]
[393378918,1762553432128,-500.0,0.0002188,2]
[393378920,1762553432235,-242.3469227,0.0002188,2]
[393378922,1762553432255,-1000.0,0.00021901,2]
[393378924,1762553432264,-782.1745761,0.0002204,2]
[393378926,1762553432273,-1201.3678908,0.00022293,2]
[393378928,1762553432282,-150.0,0.00022339,2]
[393378930,1762553432291,-1000.0,0.00022421,2]
[393378932,1762553432300,-158.480173,0.00022443,3]
[393378934,1762553432309,-6043.8272991,0.00022455,2]
[393378936,1762553432318,-574.29507865,0.000225,14]
[393378938,1762553432327,-207.87767848,0.00022652,2]
[393378940,1762553432335,-177.82771872,0.00022937,2]
[393378942,1762553432344,-1500.0,0.00022968,2]
[393378944,1762553432353,-574.22804463,0.0002299,2]
[393378945,1762553432363,-420.0,0.00023088,2]
[393378946,1762553432375,-179.76753054,0.00023329,2]
[393378947,1762553432384,-500.0,0.00023329,2]
[393378948,1762553432394,-186.46928433,0.00023329,2]
[393378949,1762553432403,-500.0,0.00023329,2]
[393378950,1762553432412,-500.0,0.00023329,2]
[393378951,1762553432422,-500.0,0.00023329,2]
[393378952,1762553432431,-500.0,0.00023329,2]
[393378953,1762553432440,-636.00552104,0.00023329,2]
[393378954,1762553432451,-500.0,0.00023329,2]
[393378955,1762553432461,-1358.07989397,0.0002333,2]
[393378956,1762553432470,-580.63020275,0.0002333,2]
[393378957,1762553432479,-2322.52081101,0.0002333,2]
[393378958,1762553432488,-311.85,0.00023382,2]
[393378959,1762553432497,-177.82,0.00023382,2]
[393378960,1762553432506,-158.480173,0.00023469,2]
[393378961,1762553432515,-177.82771872,0.00023473,2]
[393378962,1762553432524,-274.52630036,0.000235,2]
[393378963,1762553432533,-500.0,0.000235,2]
[393378965,1762553432542,-292.46,0.000235,2]
[393378967,1762553432550,-2000.0,0.00023516,2]
[393378969,1762553432559,-261.5,0.00023563,3]
[393378971,1762553432568,-784.5,0.00023563,3]
[393378973,1762553432577,-11559.35,0.00023563,10]